[Event "14th Chennai GM Open 2023"]
[Site "Chennai"]
[Date "2024.01.03"]
[Round "6.10"]
[White "Podolchenko, Evgeniy"]
[Black "Sriram Adarsh Uppala"]
[Result "1/2-1/2"]
[ECO "D31"]
[WhiteElo "2376"]
[BlackElo "1900"]
[Annotator "RC"]
[PlyCount "84"]
[EventDate "2023.12.31"]
[EventType "swiss"]
[EventCountry "IND"]
[SourceTitle "playchess.com"]
[Source "ChessBase"]
[SourceQuality "1"]
[TimeControl "5400+30"]

1. d4 {[%emt 0:00:47]} d5 {[%emt 0:00:53]} 2. c4 {[%emt 0:00:02]} e6 {[%emt 0:01:07]} 3. Nc3 {[%emt 0:00:03]} a6 {[%emt 0:00:41]} 4. cxd5 {[%emt 0:00:10]} exd5 {[%emt 0:00:08]} 5. Qb3 {[%emt 0:00:02]} c5 {[%emt 0:00:17]} 6. dxc5 {[%emt 0:12:14]} Bxc5 {[%emt 0:04:45]} 7. Qxd5 {[%emt 0:18:34]} Qb6 {[%emt 0:00:21]} 8. e3 {[%emt 0:00:23]} Nf6 {[%emt 0:01:10]} 9. Qb3 {[%emt 0:00:51]} Qxb3 {[%emt 0:02:36]} 10. axb3 {[%emt 0:00:04]} Nc6 {[%emt 0:00:06]} 11. Bd2 {[%emt 0:14:16]} Bf5 {[%emt 0:06:59]} 12. Bb5 {[%emt 0:07:13]} Rc8 {[%emt 0:01:15]} 13. Bxc6+ {[%emt 0:00:25]} Rxc6 {[%emt 0:00:11]} 14. Nf3 {[%emt 0:00:16]} Bc2 {[%emt 0:01:27]} 15. b4 {[%emt 0:00:23]} Bb6 {[%emt 0:01:05]} 16. b5 {[%emt 0:01:32]} Rc8 {[%emt 0:00:06]} 17. bxa6 {[%emt 0:00:53]} bxa6 {[%emt 0:00:09]} 18. Rxa6 {[%emt 0:01:02]} Bc5 {[%emt 0:04:53]} 19. Na4 {[%emt 0:06:40]} Be7 {[%emt 0:06:01]} 20. Nd4 {[%emt 0:05:26]} Bd3 {[%emt 0:02:19]} 21. Ra7 {[%emt 0:00:02]} Nd5 {[%emt 0:01:38]} 22. Bc3 {[%emt 0:00:37]} O-O {[%emt 0:07:59]} 23. Kd2 {[%emt 0:02:19]} Be4 {[%emt 0:00:32]} 24. f3 {[%emt 0:02:48]} Bg6 {[%emt 0:00:04]} 25. Nb6 {[%emt 0:05:12]} Nxb6 {[%emt 0:03:20]} 26. Rxe7 {[%emt 0:00:03]} Nc4+ {[%emt 0:07:00]} 27. Ke2 {[%emt 0:00:02]} Rfe8 {[%emt 0:00:09]} 28. Rxe8+ {[%emt 0:03:22]} Rxe8 {[%emt 0:00:10]} 29. Kf2 Rxe3 {[%emt 0:00:38]} 30. Re1 {[%emt 0:00:42]} Rxe1 {[%emt 0:00:41]} 31. Kxe1 {[%emt 0:00:01]} Bd3 {[%emt 0:14:55]} 32. Kf2 {[%emt 0:01:08]} f6 {[%emt 0:01:03]} 33. Ne6 {[%emt 0:05:45]} Kf7 {[%emt 0:03:57]} 34. Nf4 {[%emt 0:00:16]} Bc2 {[%emt 0:00:14]} 35. Ke2 {[%emt 0:00:21]} g5 {[%emt 0:05:09]} 36. Nd5 {[%emt 0:01:16]} f5 {[%emt 0:00:18]} 37. Nb4 {[%emt 0:00:13]} Bb1 {[%emt 0:00:27]} 38. Nc6 {[%emt 0:00:43]} h5 {[%emt 0:04:09]} 39. b3 {[%emt 0:02:05]} Nd6 {[%emt 0:00:50]} 40. Nd4 {[%emt 0:01:36]} f4 {[%emt 0:01:31]} 41. h4 {[%emt 0:02:32]} gxh4 {[%emt 0:04:11]} 42. Bd2 {[%emt 0:02:57]} Nf5 {[%emt 0:01:16]} 1/2-1/2

[Event "14th Chennai GM Open 2023"]
[Site "Chennai"]
[Date "2024.01.03"]
[Round "6.11"]
[White "Majumder Shrayan"]
[Black "Shahil Dey"]
[Result "1/2-1/2"]
[ECO "E52"]
[WhiteElo "1916"]
[BlackElo "2368"]
[Annotator "RC"]
[PlyCount "61"]
[EventDate "2023.12.31"]
[EventType "swiss"]
[EventCountry "IND"]
[SourceTitle "playchess.com"]
[Source "ChessBase"]
[SourceQuality "1"]
[TimeControl "5400+30"]

1. d4 {[%emt 0:00:18]} Nf6 {[%emt 0:00:12]} 2. c4 {[%emt 0:00:10]} e6 {[%emt 0:00:17]} 3. Nc3 {[%emt 0:00:11]} Bb4 {[%emt 0:00:07]} 4. Bd2 {[%emt 0:01:12]} O-O {[%emt 0:03:48]} 5. Nf3 {[%emt 0:00:19]} d5 {[%emt 0:02:41]} 6. e3 {[%emt 0:01:06]} b6 {[%emt 0:01:34]} 7. cxd5 {[%emt 0:01:11]} exd5 {[%emt 0:00:09]} 8. Bd3 {[%emt 0:00:10]} Bb7 {[%emt 0:02:03]} 9. O-O {[%emt 0:03:25]} Re8 {[%emt 0:00:12]} 10. Rc1 {[%emt 0:01:09]} a6 {[%emt 0:00:44]} 11. Ne5 {[%emt 0:01:19]} Bd6 {[%emt 0:01:21]} 12. f4 {[%emt 0:01:05]} c5 {[%emt 0:00:34]} 13. Qf3 {[%emt 0:19:00]} Nc6 {[%emt 0:09:10]} 14. Qh3 {[%emt 0:06:47]} g6 {[%emt 0:12:14]} 15. g4 {[%emt 0:13:18]} cxd4 {[%emt 0:04:35]} 16. Nxc6 {[%emt 0:00:48]} Bxc6 {[%emt 0:00:06]} 17. exd4 {[%emt 0:00:15]} Ne4 {[%emt 0:01:18]} 18. Nxe4 {[%emt 0:06:05]} dxe4 {[%emt 0:02:46]} 19. Bc4 {[%emt 0:14:47]} Ra7 {[%emt 0:07:27]} 20. f5 {[%emt 0:04:52]} Bc5 {[%emt 0:06:56]} 21. Be3 {[%emt 0:21:00]} Bxd4 {[%emt 0:00:11]} 22. fxg6 {[%emt 0:00:07]} Bxe3+ {[%emt 0:00:05]} 23. Qxe3 {[%emt 0:00:07]} hxg6 {[%emt 0:00:13]} 24. Rcd1 {[%emt 0:02:17]} Qc8 {[%emt 0:03:17]} 25. Qg5 {[%emt 0:00:28]} Kg7 {[%emt 0:41:00]} 26. Qf6+ Kh7 27. Qh4+ Kg7 28. Qf6+ Kh7 29. Qh4+ Kg7 30. Qf6+ Kh7 {[%emt 0:00:00]} 31. Qg5 {[%emt 0:04:34]} 1/2-1/2

[Event "14th Chennai GM Open 2023"]
[Site "Chennai"]
[Date "2024.01.03"]
[Round "6.12"]
[White "Sharnarthi Shlok"]
[Black "Saravana, Krishnan P."]
[Result "1/2-1/2"]
[ECO "B13"]
[WhiteElo "1832"]
[BlackElo "2269"]
[Annotator "RC"]
[PlyCount "89"]
[EventDate "2023.12.31"]
[EventType "swiss"]
[EventCountry "IND"]
[SourceTitle "playchess.com"]
[Source "ChessBase"]
[SourceQuality "1"]
[TimeControl "5400+30"]

1. e4 {[%emt 0:00:06]} c6 {[%emt 0:00:15]} 2. d4 {[%emt 0:00:07]} d5 {[%emt 0:00:04]} 3. exd5 {[%emt 0:00:06]} cxd5 {[%emt 0:00:10]} 4. Bd3 {[%emt 0:00:05]} Nf6 {[%emt 0:00:22]} 5. h3 {[%emt 0:00:35]} Nc6 {[%emt 0:00:40]} 6. c3 {[%emt 0:00:06]} g6 {[%emt 0:00:20]} 7. Bf4 {[%emt 0:00:15]} Bf5 {[%emt 0:01:23]} 8. Nf3 {[%emt 0:01:47]} Qb6 {[%emt 0:00:41]} 9. b4 {[%emt 0:01:36]} Bxd3 {[%emt 0:04:31]} 10. Qxd3 {[%emt 0:00:11]} Bg7 {[%emt 0:00:50]} 11. Nbd2 {[%emt 0:00:43]} O-O {[%emt 0:03:15]} 12. O-O {[%emt 0:00:31]} Rac8 {[%emt 0:11:35]} 13. Rfe1 {[%emt 0:00:30]} Qd8 {[%emt 0:04:43]} 14. Ne5 {[%emt 0:03:04]} Nh5 {[%emt 0:02:54]} 15. Bh2 {[%emt 0:00:52]} Bxe5 {[%emt 0:01:30]} 16. dxe5 {[%emt 0:01:07]} d4 {[%emt 0:00:30]} 17. Nf3 {[%emt 0:07:02]} dxc3 {[%emt 0:03:17]} 18. Qxc3 {[%emt 0:00:07]} Qb6 {[%emt 0:02:12]} 19. Qd2 {[%emt 0:04:41]} Ng7 {[%emt 0:01:45]} 20. Re4 {[%emt 0:05:31]} Rcd8 {[%emt 0:02:22]} 21. Qc3 {[%emt 0:05:17]} Ne6 {[%emt 0:03:58]} 22. Bf4 {[%emt 0:03:46]} Rd5 {[%emt 0:12:00]} 23. Be3 {[%emt 0:10:04]} Qd8 {[%emt 0:04:07]} 24. a4 {[%emt 0:05:57]} Rd3 {[%emt 0:11:50]} 25. Qc4 {[%emt 0:02:52]} Qd7 {[%emt 0:03:09]} 26. Kh2 {[%emt 0:05:52]} Rc8 {[%emt 0:02:37]} 27. Rc1 {[%emt 0:01:32]} Rc7 {[%emt 0:03:21]} 28. Qa2 {[%emt 0:04:11]} Rd1 {[%emt 0:07:57]} 29. Rxd1 {[%emt 0:08:28]} Qxd1 {[%emt 0:00:10]} 30. b5 {[%emt 0:00:37]} Na5 {[%emt 0:08:33]} 31. Bxa7 {[%emt 0:04:05]} Rc1 {[%emt 0:01:25]} 32. Re1 {[%emt 0:10:17]} Qc2 {[%emt 0:00:16]} 33. Qxc2 {[%emt 0:00:37]} Rxc2 {[%emt 0:00:03]} 34. Ra1 {[%emt 0:00:13]} Kf8 {[%emt 0:00:49]} 35. Bb6 {[%emt 0:02:05]} Nc4 {[%emt 0:00:39]} 36. Nd4 {[%emt 0:02:02]} Rb2 {[%emt 0:00:54]} 37. Nxe6+ {[%emt 0:00:34]} fxe6 {[%emt 0:00:05]} 38. Bc5 {[%emt 0:00:35]} Rc2 {[%emt 0:01:14]} 39. Bd4 {[%emt 0:02:57]} Rd2 {[%emt 0:00:58]} 40. Bc5 {[%emt 0:03:10]} Rc2 {[%emt 0:00:12]} 41. Ba7 {[%emt 0:00:41]} Rb2 {[%emt 0:00:45]} 42. Bd4 {[%emt 0:04:33]} Rd2 {[%emt 0:00:11]} 43. Bc3 {[%emt 0:00:15]} Rc2 {[%emt 0:00:37]} 44. Bb4 {[%emt 0:01:17]} b6 {[%emt 0:02:18]} 45. Kg3 {[%emt 0:01:17]} 1/2-1/2

[Event "14th Chennai GM Open 2023"]
[Site "Chennai"]
[Date "2024.01.03"]
[Round "6.13"]
[White "Haridev S"]
[Black "Murugan, Krishnamoorthy"]
[Result "1/2-1/2"]
[ECO "B30"]
[WhiteElo "1647"]
[BlackElo "2238"]
[Annotator "RC"]
[PlyCount "243"]
[EventDate "2023.12.31"]
[EventType "swiss"]
[EventCountry "IND"]
[SourceTitle "playchess.com"]
[Source "ChessBase"]
[SourceQuality "1"]
[TimeControl "5400+30"]

1. e4 {[%emt 0:00:11]} c5 {[%emt 0:01:13]} 2. Nf3 {[%emt 0:00:19]} Nc6 {[%emt 0:00:09]} 3. c4 {[%emt 0:00:17]} d6 {[%emt 0:01:17]} 4. d4 {[%emt 0:00:13]} Bg4 {[%emt 0:04:01]} 5. d5 {[%emt 0:10:47]} Nd4 {[%emt 0:00:24]} 6. Nbd2 {[%emt 0:01:14]} g6 {[%emt 0:05:01]} 7. Bd3 {[%emt 0:09:27]} Bg7 {[%emt 0:01:50]} 8. O-O {[%emt 0:01:02]} Nf6 {[%emt 0:03:10]} 9. h3 {[%emt 0:04:24]} Nxf3+ {[%emt 0:04:11]} 10. Nxf3 {[%emt 0:00:10]} Bxf3 {[%emt 0:00:56]} 11. Qxf3 {[%emt 0:00:38]} Nd7 {[%emt 0:00:28]} 12. Qe2 {[%emt 0:04:00]} O-O {[%emt 0:00:51]} 13. Be3 {[%emt 0:03:51]} Re8 {[%emt 0:02:06]} 14. f4 {[%emt 0:12:11]} e6 {[%emt 0:00:40]} 15. dxe6 {[%emt 0:02:06]} Rxe6 {[%emt 0:00:33]} 16. f5 {[%emt 0:05:15]} gxf5 {[%emt 0:07:55]} 17. Qh5 {[%emt 0:07:00]} Qe8 {[%emt 0:12:17]} 18. Rxf5 {[%emt 0:05:10]} Ne5 {[%emt 0:01:05]} 19. Rd1 {[%emt 0:10:41]} Qc6 {[%emt 0:07:05]} 20. Rdf1 {[%emt 0:05:22]} Rf8 {[%emt 0:02:02]} 21. Bc2 {[%emt 0:01:36]} Qe8 {[%emt 0:05:00]} 22. Bg5 {[%emt 0:04:16]} Rg6 {[%emt 0:02:03]} 23. b3 {[%emt 0:03:22]} Qe6 {[%emt 0:01:00]} 24. Qh4 {[%emt 0:02:02]} Bh6 {[%emt 0:10:23]} 25. Bxh6 {[%emt 0:04:42]} Rxh6 {[%emt 0:00:14]} 26. Rg5+ {[%emt 0:01:08]} Kh8 {[%emt 0:01:31]} 27. Qf4 {[%emt 0:00:05]} Rg8 {[%emt 0:01:08]} 28. Rxg8+ {[%emt 0:02:04]} Kxg8 {[%emt 0:00:11]} 29. Bd1 {[%emt 0:00:39]} Kg7 {[%emt 0:02:08]} 30. Qg5+ {[%emt 0:00:36]} Rg6 {[%emt 0:02:41]} 31. Qe3 {[%emt 0:00:06]} Rf6 {[%emt 0:01:54]} 32. Re1 {[%emt 0:00:48]} Rh6 {[%emt 0:02:57]} 33. Rf1 {[%emt 0:00:15]} Rf6 {[%emt 0:01:02]} 34. Re1 {[%emt 0:00:26]} Rh6 {[%emt 0:00:29]} 35. Be2 {[%emt 0:01:05]} Qe7 {[%emt 0:00:35]} 36. Rf1 {[%emt 0:00:25]} Qh4 {[%emt 0:00:44]} 37. Bd1 {[%emt 0:00:35]} Rg6 {[%emt 0:01:46]} 38. Kh2 {[%emt 0:00:05]} Qg5 {[%emt 0:01:21]} 39. Qxg5 {[%emt 0:00:34]} Rxg5 {[%emt 0:00:08]} 40. g4 {[%emt 0:00:27]} Rg6 {[%emt 0:00:17]} 41. Kg3 {[%emt 0:00:38]} Rf6 {[%emt 0:01:44]} 42. Rf5 {[%emt 0:00:15]} h6 {[%emt 0:00:42]} 43. h4 {[%emt 0:00:26]} Re6 {[%emt 0:00:46]} 44. g5 {[%emt 0:00:57]} hxg5 {[%emt 0:02:44]} 45. Rxg5+ {[%emt 0:00:01]} Rg6 {[%emt 0:00:33]} 46. Kf4 {[%emt 0:00:44]} Kf6 {[%emt 0:00:58]} 47. Rf5+ {[%emt 0:00:52]} Ke6 {[%emt 0:01:34]} 48. Rg5 {[%emt 0:00:01]} Nd3+ {[%emt 0:00:48]} 49. Ke3 {[%emt 0:00:09]} Rxg5 {[%emt 0:10:25]} 50. hxg5 {[%emt 0:00:01]} Nb4 {[%emt 0:00:00]} 51. a3 {[%emt 0:00:45]} Nc6 {[%emt 0:00:00]} 52. Kf4 {[%emt 0:01:11]} a5 {[%emt 0:00:00]} 53. Bg4+ {[%emt 0:00:34]} Ke7 {[%emt 0:00:00]} 54. Bd1 {[%emt 0:00:32]} Ne5 {[%emt 0:00:00]} 55. Kf5 {[%emt 0:00:47]} a4 {[%emt 0:00:00]} 56. bxa4 {[%emt 0:00:18]} b6 {[%emt 0:00:00]} 57. Be2 {[%emt 0:00:34]} Nc6 {[%emt 0:00:00]} 58. Bd3 {[%emt 0:00:38]} Nd4+ {[%emt 0:00:00]} 59. Kf4 {[%emt 0:00:02]} Ke6 {[%emt 0:00:00]} 60. Bf1 {[%emt 0:00:01]} Nc6 {[%emt 0:00:10]} 61. Bh3+ {[%emt 0:00:36]} Ke7 {[%emt 0:00:28]} 62. Kf5 {[%emt 0:00:24]} Ne5 {[%emt 0:00:54]} 63. Bf1 {[%emt 0:00:02]} Kf8 {[%emt 0:01:16]} 64. Be2 {[%emt 0:00:43]} Kg7 {[%emt 0:00:19]} 65. Bf1 {[%emt 0:00:31]} Nc6 {[%emt 0:00:48]} 66. Bd3 {[%emt 0:00:11]} Nd4+ {[%emt 0:00:23]} 67. Kf4 {[%emt 0:00:13]} f6 {[%emt 0:00:39]} 68. gxf6+ {[%emt 0:01:38]} Kxf6 {[%emt 0:00:06]} 69. Bf1 {[%emt 0:00:54]} Ne6+ {[%emt 0:00:07]} 70. Kf3 {[%emt 0:00:38]} Ke5 {[%emt 0:00:12]} 71. Ke3 {[%emt 0:00:03]} Nf8 {[%emt 0:00:37]} 72. Bd3 {[%emt 0:00:28]} Nd7 {[%emt 0:00:19]} 73. Be2 {[%emt 0:00:12]} Nb8 {[%emt 0:00:29]} 74. Bd1 {[%emt 0:00:42]} Nc6 {[%emt 0:00:28]} 75. Be2 {[%emt 0:00:04]} Nd4 {[%emt 0:00:39]} 76. Bd3 {[%emt 0:00:01]} Kf6 {[%emt 0:00:11]} 77. Kf4 {[%emt 0:00:37]} Nc6 {[%emt 0:01:17]} 78. Bf1 {[%emt 0:00:32]} Ne5 {[%emt 0:00:51]} 79. Be2 {[%emt 0:00:01]} Ke6 {[%emt 0:01:12]} 80. Bf1 {[%emt 0:00:49]} Ng6+ {[%emt 0:00:10]} 81. Kg5 {[%emt 0:00:15]} Nh8 {[%emt 0:01:03]} 82. Kf4 {[%emt 0:01:14]} Kf6 {[%emt 0:00:12]} 83. Bd3 {[%emt 0:00:44]} Ng6+ {[%emt 0:00:12]} 84. Ke3 {[%emt 0:00:11]} Ne5 {[%emt 0:00:52]} 85. Bf1 {[%emt 0:00:23]} Kg5 {[%emt 0:00:10]} 86. Be2 {[%emt 0:00:06]} Nc6 {[%emt 0:01:41]} 87. e5 {[%emt 0:02:13]} Nxe5 {[%emt 0:00:18]} 88. Ke4 {[%emt 0:00:19]} Kf6 {[%emt 0:00:17]} 89. Bf1 {[%emt 0:00:38]} Ke7 {[%emt 0:00:56]} 90. Be2 {[%emt 0:00:13]} Kd7 {[%emt 0:00:16]} 91. Bf1 {[%emt 0:00:19]} Kc6 {[%emt 0:02:28]} 92. Be2 {[%emt 0:00:04]} Nd7 {[%emt 0:00:13]} 93. Bf1 {[%emt 0:00:28]} d5+ {[%emt 0:00:19]} 94. cxd5+ {[%emt 0:00:02]} Kd6 {[%emt 0:00:08]} 95. Bg2 {[%emt 0:01:02]} Nf6+ {[%emt 0:00:14]} 96. Kd3 {[%emt 0:00:04]} Nxd5 {[%emt 0:00:13]} 97. Bh1 {[%emt 0:00:57]} Ne7 {[%emt 0:00:54]} 98. Kc4 {[%emt 0:00:15]} Ng6 {[%emt 0:00:49]} 99. Kb5 {[%emt 0:00:38]} Kc7 {[%emt 0:00:03]} 100. a5 {[%emt 0:00:11]} bxa5 {[%emt 0:00:04]} 101. Kxc5 {[%emt 0:00:02]} Ne7 {[%emt 0:00:22]} 102. Kb5 {[%emt 0:00:24]} Kb8 {[%emt 0:00:09]} 103. a4 {[%emt 0:00:27]} Ka7 {[%emt 0:00:03]} 104. Kxa5 {[%emt 0:00:26]} Nf5 {[%emt 0:00:04]} 105. Kb5 {[%emt 0:00:28]} Nd4+ {[%emt 0:00:03]} 106. Kc4 {[%emt 0:00:09]} Ne6 {[%emt 0:00:11]} 107. Kd5 {[%emt 0:03:29]} Nc7+ {[%emt 0:00:13]} 108. Kc6 {[%emt 0:00:00]} Ne6 {[%emt 0:00:09]} 109. Kd6 {[%emt 0:00:00]} Nd4 {[%emt 0:00:09]} 110. Kd5 {[%emt 0:00:00]} Nb3 {[%emt 0:00:09]} 111. Kc4 {[%emt 0:00:00]} Nd2+ {[%emt 0:00:06]} 112. Kc3 {[%emt 0:00:00]} Nf1 {[%emt 0:00:09]} 113. Be4 {[%emt 0:00:00]} Ne3 {[%emt 0:00:40]} 114. Kd4 {[%emt 0:00:19]} Ng4 {[%emt 0:00:21]} 115. Bf5 {[%emt 0:00:51]} Nf2 {[%emt 0:01:47]} 116. Bc2 {[%emt 0:00:10]} Kb6 {[%emt 0:00:13]} 117. Ke3 {[%emt 0:00:37]} Ng4+ {[%emt 0:00:06]} 118. Kf4 {[%emt 0:00:09]} Nf6 {[%emt 0:00:04]} 119. Ke3 {[%emt 0:00:42]} Nd7 {[%emt 0:00:12]} 120. Kd4 {[%emt 0:00:01]} Nc5 {[%emt 0:00:09]} 121. Bd1 {[%emt 0:00:03]} Nxa4 {[%emt 0:07:44]} 122. Bxa4 {[%emt 0:00:02]} 1/2-1/2

[Event "14th Chennai GM Open 2023"]
[Site "Chennai"]
[Date "2024.01.03"]
[Round "6.14"]
[White "Ratnakaran, K.."]
[Black "Shah Jeet"]
[Result "1-0"]
[ECO "C77"]
[WhiteElo "2256"]
[BlackElo "1830"]
[Annotator "RC"]
[PlyCount "127"]
[EventDate "2023.12.31"]
[EventType "swiss"]
[EventCountry "IND"]
[SourceTitle "playchess.com"]
[Source "ChessBase"]
[SourceQuality "1"]
[TimeControl "5400+30"]

1. e4 {[%emt 0:00:03]} e5 {[%emt 0:00:19]} 2. Nf3 {[%emt 0:00:05]} Nc6 {[%emt 0:00:04]} 3. Bb5 {[%emt 0:00:04]} a6 {[%emt 0:00:10]} 4. Ba4 {[%emt 0:00:04]} Nf6 {[%emt 0:00:08]} 5. d3 {[%emt 0:00:05]} d6 {[%emt 0:00:18]} 6. c3 {[%emt 0:00:12]} g6 {[%emt 0:00:00]} 7. Nbd2 {[%emt 0:01:49]} Bg7 {[%emt 0:00:23]} 8. Nf1 {[%emt 0:00:05]} O-O {[%emt 0:00:10]} 9. Ng3 {[%emt 1:32:33]} d5 {[%emt 0:05:59]} 10. Qe2 {[%emt 0:00:00]} Qd6 {[%emt 0:01:17]} 11. h4 {[%emt 0:00:00]} Bg4 {[%emt 0:01:24]} 12. Bg5 {[%emt 0:00:00]} h6 {[%emt 0:01:35]} 13. Bxf6 {[%emt 0:00:00]} Bxf6 {[%emt 0:00:22]} 14. exd5 {[%emt 0:00:00]} Qxd5 {[%emt 0:00:36]} 15. Bb3 {[%emt 0:00:00]} Qd7 {[%emt 0:06:28]} 16. h5 {[%emt 0:00:00]} Kg7 {[%emt 0:14:57]} 17. hxg6 {[%emt 0:00:00]} fxg6 {[%emt 0:00:34]} 18. O-O-O {[%emt 0:00:00]} Bxf3 {[%emt 0:13:50]} 19. gxf3 {[%emt 0:00:00]} Bg5+ {[%emt 0:02:08]} 20. Kb1 {[%emt 0:05:30]} Rad8 {[%emt 0:00:19]} 21. Ne4 {[%emt 0:00:00]} Qf5 {[%emt 0:06:33]} 22. Nc5 {[%emt 0:00:00]} Rde8 {[%emt 0:01:16]} 23. Bd5 {[%emt 0:00:00]} Nd8 {[%emt 0:06:00]} 24. Be4 {[%emt 0:00:00]} Qc8 {[%emt 0:06:34]} 25. d4 {[%emt 0:00:00]} exd4 {[%emt 0:01:28]} 26. Rxd4 {[%emt 0:00:00]} Ne6 {[%emt 0:02:40]} 27. Rd7+ {[%emt 0:00:00]} Kf6 {[%emt 0:02:00]} 28. f4 {[%emt 0:00:00]} Nxf4 {[%emt 0:14:45]} 29. Qd1 {[%emt 0:00:00]} Re5 {[%emt 0:04:14]} 30. Bxb7 {[%emt 0:00:00]} Qe8 {[%emt 0:00:16]} 31. Rxc7 {[%emt 0:00:00]} Rf7 {[%emt 0:02:18]} 32. Bc6 {[%emt 0:00:00]} Rxc7 {[%emt 0:01:53]} 33. Bxe8 {[%emt 0:00:00]} Rcxc5 {[%emt 0:00:13]} 34. Qd6+ {[%emt 0:00:00]} Kg7 {[%emt 0:02:35]} 35. Ba4 {[%emt 0:00:00]} Rcd5 {[%emt 0:00:28]} 36. Qxa6 {[%emt 0:00:00]} h5 {[%emt 0:01:56]} 37. Rd1 {[%emt 0:00:00]} h4 {[%emt 0:00:57]} 38. Rxd5 {[%emt 0:00:00]} Nxd5 {[%emt 0:01:43]} 39. Bc6 {[%emt 0:00:00]} Re1+ {[%emt 0:00:32]} 40. Kc2 {[%emt 0:00:00]} Nf4 {[%emt 0:00:22]} 41. Qa5 {[%emt 0:00:00]} Re2+ {[%emt 0:00:33]} 42. Kd1 {[%emt 0:00:00]} Kh6 {[%emt 0:00:33]} 43. Qa8 {[%emt 0:00:00]} Bf6 {[%emt 0:00:24]} 44. Qf8+ {[%emt 0:00:00]} Kg5 {[%emt 0:00:01]} 45. Qc5+ {[%emt 0:00:00]} Kh6 {[%emt 0:00:15]} 46. Qd6 {[%emt 0:00:00]} Kg5 {[%emt 0:01:08]} 47. Qxf4+ {[%emt 0:00:00]} Kxf4 {[%emt 0:00:02]} 48. Kxe2 {[%emt 0:00:00]} g5 {[%emt 0:00:27]} 49. a4 {[%emt 0:00:00]} Ke5 {[%emt 0:00:13]} 50. Bd7 {[%emt 0:00:00]} Kf4 {[%emt 0:01:09]} 51. a5 {[%emt 0:00:00]} Bd8 {[%emt 0:00:20]} 52. b4 {[%emt 0:00:00]} g4 {[%emt 0:00:08]} 53. Bc6 {[%emt 0:00:00]} h3 {[%emt 0:00:47]} 54. a6 {[%emt 0:00:00]} Bb6 {[%emt 0:00:14]} 55. c4 {[%emt 0:00:00]} Ke5 {[%emt 0:00:51]} 56. c5 {[%emt 0:00:00]} Ba7 {[%emt 0:00:01]} 57. Ke3 {[%emt 0:00:00]} h2 {[%emt 0:00:29]} 58. Kd3 {[%emt 0:00:00]} Ke6 {[%emt 0:00:52]} 59. Kc4 {[%emt 0:00:00]} Ke7 {[%emt 0:00:07]} 60. b5 {[%emt 0:00:00]} Kd8 {[%emt 0:00:25]} 61. b6 {[%emt 0:00:00]} Bb8 {[%emt 0:00:05]} 62. a7 {[%emt 0:00:00]} Bxa7 {[%emt 0:00:05]} 63. bxa7 {[%emt 0:00:00]} Kc7 {[%emt 0:00:03]} 64. a8=Q {[%emt 0:22:00]} 1-0

[Event "14th Chennai GM Open 2023"]
[Site "Chennai"]
[Date "2024.01.04"]
[Round "7.1"]
[White "Nguyen, Duc Hoa"]
[Black "Fedorov, Alexei"]
[Result "1/2-1/2"]
[ECO "B42"]
[WhiteElo "2322"]
[BlackElo "2454"]
[Annotator "RC"]
[PlyCount "71"]
[EventDate "2023.12.31"]
[EventType "swiss"]
[EventCountry "IND"]
[SourceTitle "playchess.com"]
[Source "ChessBase"]
[SourceQuality "1"]
[TimeControl "5400+30"]

1. e4 {[%emt 0:00:46]} c5 {[%emt 0:00:05]} 2. Nf3 {[%emt 0:00:29]} e6 {[%emt 0:01:20]} 3. d4 {[%emt 0:00:09]} cxd4 {[%emt 0:00:04]} 4. Nxd4 {[%emt 0:00:03]} a6 {[%emt 0:00:13]} 5. Bd3 {[%emt 0:00:28]} Bc5 {[%emt 0:00:58]} 6. Nb3 {[%emt 0:02:54]} Be7 {[%emt 0:00:06]} 7. Qg4 {[%emt 0:02:21]} g6 {[%emt 0:00:06]} 8. Nc3 {[%emt 0:00:33]} d6 {[%emt 0:05:07]} 9. Qe2 {[%emt 0:03:02]} Nc6 {[%emt 0:00:23]} 10. Be3 {[%emt 0:01:13]} Nf6 {[%emt 0:00:33]} 11. O-O-O {[%emt 0:01:21]} h5 {[%emt 0:08:06]} 12. Kb1 {[%emt 0:06:08]} b5 {[%emt 0:04:52]} 13. f4 {[%emt 0:06:37]} Qc7 {[%emt 0:00:14]} 14. Rhf1 {[%emt 0:02:27]} b4 {[%emt 0:04:11]} 15. Na4 {[%emt 0:00:45]} Rb8 {[%emt 0:00:05]} 16. h3 {[%emt 0:01:02]} h4 {[%emt 0:30:03]} 17. Qf2 {[%emt 0:00:51]} O-O {[%emt 0:02:37]} 18. Qxh4 {[%emt 0:11:04]} Nxe4 {[%emt 0:18:04]} 19. Qh6 {[%emt 0:00:26]} Nf6 {[%emt 0:02:44]} 20. Nd4 {[%emt 0:12:53]} Bd7 {[%emt 0:03:10]} 21. Nf3 {[%emt 0:06:15]} Rfc8 {[%emt 0:02:13]} 22. Bxg6 {[%emt 0:08:17]} Bf8 {[%emt 0:01:50]} 23. Qg5 {[%emt 0:00:41]} fxg6 {[%emt 0:01:20]} 24. Qxf6 {[%emt 0:00:07]} Bg7 {[%emt 0:01:24]} 25. Qh4 {[%emt 0:01:39]} Na5 {[%emt 0:01:15]} 26. Nc5 {[%emt 0:00:12]} b3 {[%emt 0:07:34]} 27. axb3 {[%emt 0:05:03]} Nxb3 {[%emt 0:00:33]} 28. cxb3 {[%emt 0:00:27]} Rxb3 {[%emt 0:01:13]} 29. Bd4 {[%emt 0:00:06]} Rxb2+ {[%emt 0:01:07]} 30. Bxb2 {[%emt 0:02:33]} Qxc5 {[%emt 0:01:01]} 31. Nd4 {[%emt 0:00:19]} Bxd4 {[%emt 0:02:07]} 32. Rxd4 {[%emt 0:00:42]} Qf5+ {[%emt 0:00:33]} 33. Ka2 {[%emt 0:00:18]} Qa5+ {[%emt 0:00:03]} 34. Kb1 {[%emt 0:00:24]} Qf5+ {[%emt 0:00:31]} 35. Ka2 {[%emt 0:00:58]} Qa5+ {[%emt 0:00:04]} 36. Kb1 {[%emt 0:00:44]} 1/2-1/2